fUSD/lending_fUSD_20260413
["ID","MTS","AMOUNT","RATE_DAILY","PERIOD"]
[420388143,1776069033359,-151.0,0.00021744,2]
[420388144,1776069033370,-500.0,0.00021744,2]
[420388145,1776069033383,-151.0,0.00021744,2]
[420388146,1776069033392,-500.0,0.00021744,2]
[420388147,1776069033402,-151.0,0.00021744,2]
[420388148,1776069033412,-500.0,0.00021744,2]
[420388149,1776069033429,-151.0,0.00021744,2]
[420388150,1776069033438,-151.0,0.00021744,2]
[420388151,1776069033451,-151.0,0.00021744,2]
[420388152,1776069033466,-151.0,0.00021744,2]
[420388153,1776069033479,-151.0,0.00021744,2]
[420388154,1776069033492,-151.0,0.00021744,2]
[420388155,1776069033505,-151.0,0.00021744,2]
[420388156,1776069033530,-151.0,0.00021744,2]
[420388157,1776069033544,-151.0,0.00021744,2]
[420388158,1776069033577,-500.0,0.00021744,2]
[420388159,1776069033594,-151.0,0.00021744,2]
[420388160,1776069033621,-500.0,0.00021744,2]
[420388161,1776069033649,-151.0,0.00021744,2]
[420388162,1776069033665,-500.0,0.00021744,2]
[420388163,1776069033693,-151.0,0.00021744,2]
[420388164,1776069033705,-500.0,0.00021744,2]
[420388165,1776069033717,-151.0,0.00021744,2]
[420388166,1776069033747,-500.0,0.00021744,2]
[420388167,1776069033758,-151.0,0.00021744,2]
[420388168,1776069033779,-500.0,0.00021744,2]
[420388169,1776069033791,-151.0,0.00021744,2]
[420388170,1776069033799,-500.0,0.00021744,2]
[420388171,1776069033817,-151.0,0.00021744,2]
[420388172,1776069033829,-500.0,0.00021744,2]
[420388173,1776069033841,-151.0,0.00021744,2]
[420388174,1776069033850,-500.0,0.00021744,2]
[420388175,1776069033865,-151.0,0.00021744,2]
[420388176,1776069033874,-500.0,0.00021744,2]
[420388177,1776069033886,-151.0,0.00021744,2]
[420388178,1776069033895,-500.0,0.00021744,2]
[420388179,1776069033909,-151.0,0.00021744,2]
[420388180,1776069033919,-500.0,0.00021744,2]
[420388181,1776069033928,-500.0,0.00021744,2]
[420388182,1776069033937,-151.0,0.00021744,2]
[420388183,1776069033947,-500.0,0.00021744,2]
[420388184,1776069033960,-151.0,0.00021744,2]
[420388185,1776069033970,-1243.57659104,0.00021744,2]
[420388186,1776069033980,-20292.84,0.00021757,2]
[420388187,1776069033990,-166.66,0.00021829,2]
[420388188,1776069034001,-500.0,0.00022014,2]
[420388189,1776069034011,-500.0,0.00022014,2]
[420388190,1776069034020,-500.0,0.00022014,2]
[420388191,1776069034030,-500.0,0.00022014,2]
[420388192,1776069034041,-500.0,0.00022014,2]
[420388193,1776069034051,-2688.1592747,0.0002207,2]
[420388194,1776069034060,-381.0765804,0.0002207,2]
[420388195,1776069034069,-4324.3977955,0.00022184,2]
[420388196,1776069034079,-1000.0,0.00022204,2]
[420388197,1776069034089,-1000.0,0.00022204,2]
[420388198,1776069034098,-1000.0,0.00022204,2]
[420388199,1776069034107,-166.66,0.00022289,30]
[420388200,1776069034116,-200.0,0.00022292,2]
[420388201,1776069034125,-155.96137184,0.00022292,2]
[420388202,1776069034136,-1116.10461429,0.00022292,2]
[420388203,1776069034145,-153.3228,0.000224,2]
[420388204,1776069034154,-940.0,0.00022447,2]
[420388205,1776069034163,-1000.0,0.00022562,2]
[420388206,1776069034173,-1000.0,0.00022562,2]
[420388207,1776069034182,-1000.0,0.00022698,2]
[420388208,1776069034191,-166.66,0.00022748,30]
[420388209,1776069034200,-544.94025023,0.00022751,2]
[420388210,1776069034209,-1000.0,0.00022751,2]
[420388211,1776069034220,-1000.0,0.00022751,2]
[420388212,1776069034229,-200.0,0.0002309,2]
[420388213,1776069034238,-1500.0,0.0002311,2]
[420388214,1776069034248,-1000.0,0.0002311,2]
[420388215,1776069034258,-166.66,0.00023208,30]
[420388216,1776069034269,-1392.63,0.00023233,2]
[420388217,1776069034278,-171.72,0.0002326,2]
[420388218,1776069034289,-151.0,0.00023285,7]
[420388219,1776069034298,-422.87,0.00023288,2]
[420388220,1776069034309,-501.44544862,0.000233,2]
[420388221,1776069034321,-500.0,0.000233,2]
[420388222,1776069034331,-154.4466,0.000233,2]
[420388223,1776069034340,-500.0,0.00023456,2]
[420388224,1776069034350,-396.33,0.000235,2]
[420388225,1776069034365,-422.87,0.00023562,2]
[420388226,1776069034377,-1281.38840685,0.00023652,2]
[420388227,1776069034386,-2000.0,0.00023658,2]
[420388228,1776069034405,-166.66,0.00023668,30]
[420388229,1776069034421,-422.87,0.00023836,2]
[420388230,1776069034437,-1000.0,0.00023848,2]
[420388231,1776069034453,-150.0,0.00023978,2]
[420388232,1776069034472,-155.03,0.00023994,2]
[420388233,1776069034483,-1000.0,0.00024004,2]
[420388234,1776069034500,-1000.0,0.0002407,2]
[420388235,1776069034516,-422.87,0.0002411,2]
[420388236,1776069034527,-166.66,0.00024127,30]
[420388237,1776069034542,-155.5788,0.000243,2]
[420388238,1776069034560,-422.88,0.00024384,2]
[420388239,1776069034573,-1003.45930392,0.00024396,2]
[420388240,1776069034592,-171.90896635,0.00024483,2]
[420388241,1776069034618,-153.674643,0.0002453,7]
[420388242,1776069034641,-305.14107946,0.0002453,2]
[420388243,1776069034670,-1000.0,0.00024551,2]
[420388244,1776069034704,-161.7,0.0002463,2]
[420388245,1776069034738,-2094.0,0.0002463,2]
[420388246,1776069034771,-229.3,0.0002463,2]
[420388247,1776069034798,-1956.0,0.0002463,2]
[420388248,1776069034821,-396.33,0.00024675,2]
[420388249,1776069034841,-151.0,0.00024829,10]
[420388250,1776069034863,-151.0,0.00024829,10]
[420388251,1776069034880,-151.0,0.00024829,10]
[420388252,1776069034892,-151.0,0.00024829,10]
[420388253,1776069034906,-151.0,0.00024829,10]
[420388254,1776069034921,-151.0,0.00024829,10]
[420388255,1776069034943,-151.0,0.00024829,10]
[420388256,1776069034959,-151.0,0.00024829,10]
[420388257,1776069034975,-151.0,0.00024829,10]
[420388258,1776069034989,-151.0,0.00024829,10]
[420388259,1776069035003,-151.0,0.00024829,10]
[420388260,1776069035023,-151.0,0.00024829,10]
[420388261,1776069035035,-151.0,0.00024829,10]
[420388262,1776069035048,-151.0,0.00024829,10]
[420388263,1776069035067,-151.0,0.00024829,10]
[420388264,1776069035079,-151.0,0.00024829,10]
[420388265,1776069035092,-151.0,0.00024829,10]
[420388266,1776069035106,-151.0,0.00024829,10]
[420388267,1776069035122,-151.0,0.00024829,10]
[420388268,1776069035136,-151.0,0.00024829,10]
[420388269,1776069035148,-151.0,0.00024829,10]
[420388270,1776069035163,-151.0,0.00024829,10]
[420388271,1776069035180,-151.0,0.00024829,10]
[420388272,1776069035192,-151.0,0.00024829,10]
[420388273,1776069035202,-151.0,0.00024829,10]
[420388274,1776069035226,-151.0,0.00024829,10]
[420388275,1776069035238,-151.0,0.00024829,10]
[420388276,1776069035248,-151.0,0.00024829,10]
[420388277,1776069035265,-151.0,0.00024829,10]
[420388278,1776069035277,-151.0,0.00024829,10]
[420388279,1776069035286,-151.0,0.00024829,10]
[420388280,1776069035299,-151.0,0.00024829,10]
[420388281,1776069035310,-151.0,0.00024829,10]
[420388282,1776069035319,-151.0,0.00024829,10]
[420388283,1776069035329,-151.0,0.00024829,10]
[420388284,1776069035341,-151.0,0.00024829,10]
[420388285,1776069035356,-151.0,0.00024829,10]
[420388286,1776069035366,-151.0,0.00024829,10]
[420388287,1776069035376,-151.0,0.00024829,10]
[420388288,1776069035387,-151.0,0.00024829,10]
[420388289,1776069035399,-151.0,0.00024829,10]
[420388290,1776069035408,-151.0,0.00024829,10]
[420388291,1776069035420,-151.0,0.00024829,10]
[420388292,1776069035429,-151.0,0.00024829,10]
[420388293,1776069035440,-151.0,0.00024829,10]
[420388294,1776069035450,-151.0,0.00024829,10]
[420388295,1776069035460,-151.0,0.00024829,10]
[420388296,1776069035471,-151.0,0.00024829,10]
[420388297,1776069035482,-151.0,0.00024829,10]
[420388298,1776069035491,-151.0,0.00024829,10]
[420388299,1776069035501,-151.0,0.00024829,10]
[420388300,1776069035518,-151.0,0.00024829,10]
[420388301,1776069035527,-151.0,0.00024829,10]
[420388302,1776069035537,-151.0,0.00024829,10]
[420388303,1776069035550,-151.0,0.00024829,10]
[420388304,1776069035567,-151.0,0.00024829,10]
[420388305,1776069035580,-151.0,0.00024829,10]
[420388306,1776069035594,-151.0,0.00024829,10]
[420388307,1776069035612,-151.0,0.00024829,10]
[420388308,1776069035625,-151.0,0.00024829,10]
[420388309,1776069035647,-151.0,0.00024829,10]
[420388310,1776069035664,-151.0,0.00024829,10]
[420388311,1776069035691,-151.0,0.00024829,10]
[420388312,1776069035711,-151.0,0.00024829,10]
[420388313,1776069035728,-151.0,0.00024829,10]
[420388314,1776069035741,-151.0,0.00024829,10]
[420388315,1776069035766,-151.0,0.00024829,10]
[420388316,1776069035781,-151.0,0.00024829,10]
[420388317,1776069035795,-151.0,0.00024829,10]
[420388318,1776069035814,-151.0,0.00024829,10]
[420388319,1776069035830,-151.0,0.00024829,10]
[420388320,1776069035852,-151.0,0.00024829,10]
[420388321,1776069035868,-151.0,0.00024829,10]
[420388322,1776069035883,-151.0,0.00024829,10]
[420388323,1776069035902,-151.0,0.00024829,10]
[420388324,1776069035918,-151.0,0.00024829,10]
[420388325,1776069035935,-151.0,0.00024829,10]
[420388326,1776069035951,-151.0,0.00024829,10]
[420388327,1776069035966,-151.0,0.00024829,10]
[420388328,1776069035982,-151.0,0.00024829,10]
[420388329,1776069035997,-151.0,0.00024829,10]
[420388330,1776069036009,-151.0,0.00024829,10]
[420388331,1776069036027,-151.0,0.00024829,10]
[420388332,1776069036038,-151.0,0.00024829,10]
[420388333,1776069036053,-151.0,0.00024829,10]
[420388334,1776069036065,-151.0,0.00024829,10]
[420388335,1776069036081,-151.0,0.00024829,10]
[420388336,1776069036099,-151.0,0.00024829,10]
[420388337,1776069036113,-151.0,0.00024829,10]
[420388338,1776069036128,-151.0,0.00024829,10]
[420388339,1776069036149,-151.0,0.00024829,10]
[420388340,1776069036163,-151.0,0.00024829,10]
[420388341,1776069036178,-151.0,0.00024829,10]
[420388342,1776069036191,-151.0,0.00024829,10]
[420388343,1776069036206,-151.0,0.00024829,10]
[420388344,1776069036219,-151.0,0.00024829,10]
[420388345,1776069036245,-151.0,0.00024829,10]
[420388346,1776069036255,-151.0,0.00024829,10]
[420388347,1776069036265,-151.0,0.00024829,10]
[420388348,1776069036275,-151.0,0.00024829,10]
[420388349,1776069036290,-578.20924308,0.00024929,2]
[420388350,1776069036303,-623.58710448,0.00024929,2]
[420388351,1776069036315,-200.0,0.00024929,2]
[420388352,1776069036327,-500.0,0.00024929,2]
[420388353,1776069036340,-8565.75555911,0.00024929,2]
[420388354,1776069036352,-187.78006525,0.00024929,2]
[420388355,1776069036365,-500.0,0.00024929,2]
[420388356,1776069036384,-500.0,0.00024929,2]
[420388357,1776069036396,-288.36372421,0.00024929,2]
[420388358,1776069036409,-174.61919141,0.00024929,2]
[420388359,1776069036431,-621.78829552,0.00024929,2]
[420388360,1776069036444,-215.51376082,0.00024929,2]
[420388361,1776069036457,-279.9045709,0.00024929,2]
[420388362,1776069036471,-500.0,0.00024984,2]
[420388363,1776069036486,-8882.6885148,0.00024984,2]
[420388364,1776069036500,-151.0,0.00024997,7]
[420388365,1776069036511,-964.9035726,0.00024997,2]
[420388366,1776069036534,-1281.38840685,0.00025025,2]
[420388367,1776069036548,-500.0,0.00025039,2]
[420388368,1776069036573,-9211.34798985,0.00025039,2]
[420388369,1776069036592,-222.98,0.00025089,3]
[420388370,1776069036606,-500.0,0.00025094,2]
[420388371,1776069036634,-346.27666434,0.00025094,2]
[420388372,1776069036649,-500.0,0.00025149,2]
[420388373,1776069036685,-350.0,0.00025191,2]
[420388374,1776069036705,-156.7192,0.000252,2]
[420388375,1776069036749,-1000.0,0.0002523,7]
[420388376,1776069036776,-155.03,0.00025363,2]
[420388377,1776069036787,-536.13901133,0.0002539,5]
[420388378,1776069036806,-500.0,0.0002539,5]
[420388379,1776069036825,-500.0,0.0002539,20]
[420388380,1776069036841,-897.12,0.00025398,3]
[420388381,1776069036860,-162.10283094,0.00025408,2]
[420388382,1776069036874,-150.0,0.00025408,2]
[420388383,1776069036886,-150.0,0.00025408,2]
[420388384,1776069036904,-150.0,0.00025408,2]
[420388385,1776069036919,-150.0,0.00025408,2]
[420388386,1776069036931,-150.0,0.00025408,2]
[420388387,1776069036952,-286.72248886,0.00025408,2]
[420388388,1776069036965,-150.0,0.00025408,2]
[420388389,1776069036980,-150.96776439,0.00025408,2]
[420388390,1776069036998,-150.0,0.00025408,2]
[420388391,1776069037015,-150.0,0.00025408,2]
[420388392,1776069037033,-179.41802937,0.00025408,2]
[420388393,1776069037051,-162.77554069,0.00025408,2]
[420388394,1776069037071,-150.0,0.00025408,2]
[420388395,1776069037085,-150.0,0.00025408,2]
[420388396,1776069037105,-150.0,0.00025408,2]
[420388397,1776069037130,-278.15591797,0.00025408,2]
[420388398,1776069037155,-150.0,0.00025408,2]
[420388399,1776069037177,-150.0,0.00025408,2]
[420388400,1776069037203,-150.0,0.00025408,2]
[420388401,1776069037221,-150.0,0.00025408,2]
[420388402,1776069037241,-150.0,0.00025408,2]
[420388403,1776069037264,-250.0,0.00025408,2]
[420388404,1776069037277,-150.0,0.00025408,2]
[420388405,1776069037305,-500.0,0.00025408,2]
[420388406,1776069037316,-153.49144431,0.00025408,2]
[420388407,1776069037333,-500.0,0.00025408,2]
[420388408,1776069037354,-159.10883896,0.00025408,2]
[420388409,1776069037366,-500.0,0.00025408,2]
[420388410,1776069037388,-500.0,0.00025408,2]
[420388411,1776069037402,-153.8681596,0.00025408,2]
[420388412,1776069037414,-500.0,0.00025408,2]
[420388413,1776069037430,-150.0,0.00025408,2]
[420388414,1776069037445,-500.0,0.00025408,2]
[420388415,1776069037457,-150.0,0.00025408,2]
[420388416,1776069037472,-150.0,0.00025408,2]
[420388417,1776069037487,-500.0,0.00025408,2]
[420388418,1776069037499,-150.0,0.00025408,2]
[420388420,1776069037513,-500.0,0.00025408,2]
[420388421,1776069037529,-150.0,0.00025408,2]
[420388422,1776069037541,-500.0,0.00025408,2]
[420388423,1776069037553,-150.0,0.00025408,2]
[420388424,1776069037565,-500.0,0.00025408,2]
[420388425,1776069037584,-150.0,0.00025408,2]
[420388426,1776069037596,-500.0,0.00025408,2]
[420388427,1776069037610,-297.95334912,0.00025408,2]
[420388429,1776069037624,-500.0,0.00025408,2]
[420388430,1776069037636,-500.0,0.00025408,2]
[420388431,1776069037651,-500.0,0.00025408,2]
[420388432,1776069037665,-500.0,0.00025408,2]
[420388433,1776069037680,-499.0,0.00025408,2]
[420388434,1776069037692,-250.0,0.00025408,2]
[420388435,1776069037706,-250.0,0.00025408,2]
[420388436,1776069037720,-250.0,0.00025408,2]
[420388437,1776069037736,-256.95165616,0.00025408,2]
[420388438,1776069037750,-150.0,0.00025408,2]
[420388439,1776069037765,-500.0,0.00025408,2]
[420388440,1776069037776,-500.0,0.00025408,2]
[420388441,1776069037788,-500.0,0.00025408,2]
[420388442,1776069037799,-500.0,0.00025408,2]
[420388443,1776069037812,-500.0,0.00025408,2]
[420388444,1776069037823,-500.0,0.00025408,2]
[420388445,1776069037835,-500.0,0.00025408,2]
[420388446,1776069037847,-318.54111176,0.00025408,2]
[420388447,1776069037859,-500.0,0.00025461,7]
[420388448,1776069037870,-600.0,0.00025461,7]
[420388450,1776069037882,-200.0,0.00025477,2]
[420388452,1776069037896,-174.38013774,0.00025477,2]
[420388454,1776069037907,-181.08010149,0.00025477,2]
[420388455,1776069037919,-250.17111425,0.00025477,2]
[420388456,1776069037935,-290.26104003,0.00025477,2]
[420388457,1776069037947,-250.0,0.00025479,6]
[420388458,1776069037959,-250.0,0.00025479,6]
[420388459,1776069037975,-249.98,0.00025479,6]
[420388460,1776069037988,-500.0,0.000255,7]
[420388461,1776069038000,-500.0,0.000255,7]
[420388462,1776069038014,-500.0,0.000255,7]
[420388463,1776069038029,-500.0,0.000255,7]
[420388464,1776069038041,-500.0,0.000255,7]
[420388465,1776069038064,-151.0,0.00025512,2]
[420388466,1776069038075,-653.3145,0.00025516,2]
[420388467,1776069038091,-7753.80664278,0.00025522,2]
[420388468,1776069038111,-1000.0,0.00025532,2]
[420388469,1776069038123,-151.0,0.00025616,2]
[420388470,1776069038135,-151.0,0.00025616,2]
[420388471,1776069038158,-151.0,0.00025616,2]
[420388472,1776069038172,-151.0,0.00025616,2]
[420388473,1776069038199,-151.0,0.00025616,2]
[420388474,1776069038218,-151.0,0.00025616,2]
[420388475,1776069038238,-500.0,0.00025617,2]
[420388476,1776069038263,-500.0,0.00025617,2]
[420388477,1776069038278,-500.0,0.00025617,2]
[420388478,1776069038302,-500.0,0.00025617,2]
[420388479,1776069038315,-500.0,0.00025617,2]
[420388480,1776069038338,-500.0,0.00025617,2]
[420388481,1776069038354,-500.0,0.00025617,2]
[420388483,1776069038367,-380.33805005,0.00025617,2]
[420388484,1776069038389,-500.0,0.00025617,2]
[420388485,1776069038403,-500.0,0.00025617,2]
[420388486,1776069038419,-500.0,0.00025617,2]
[420388487,1776069038439,-118.11991379,0.00025617,2]
[420388488,1776069039259,-34.2394171,0.00025617,2]
[420388489,1776069039289,-500.0,0.00025617,2]
[420388490,1776069039302,-500.0,0.00025617,2]
[420388491,1776069039324,-500.0,0.00025617,2]
[420388492,1776069039342,-500.0,0.00025617,2]
[420388493,1776069039356,-500.0,0.00025617,2]
[420388494,1776069039379,-500.0,0.00025617,2]
[420388495,1776069039394,-500.0,0.00025617,2]
[420388496,1776069039420,-500.0,0.00025617,2]
[420388497,1776069039437,-500.0,0.00025617,2]
[420388505,1776069040221,-500.0,0.00025617,2]
[420388506,1776069040272,-500.0,0.00025617,2]
[420388507,1776069040303,-500.0,0.00025617,2]
[420388508,1776069040334,-235.63409355,0.00025617,2]
[420388509,1776069040347,-829.55857986,0.00025617,2]
[420388510,1776069040368,-829.55857986,0.00025617,2]
[420388511,1776069040385,-829.55857986,0.00025617,2]
[420388512,1776069040400,-829.55857986,0.00025617,2]
[420388513,1776069040429,-829.55857986,0.00025617,2]
[420388514,1776069040448,-829.55857986,0.00025617,2]
[420388515,1776069040479,-559.4753417,0.00025617,2]
[420388516,1776069040599,-270.08323816,0.00025617,2]
[420388517,1776069040648,-829.55857986,0.00025617,2]
[420388518,1776069040683,-331.02449636,0.00025617,2]
[420388535,1776069046209,-150.0,0.000224,2]
[420388536,1776069046231,-150.1632,0.000232,2]
[420388537,1776069046250,-151.0,0.00025617,2]
[420388538,1776069046294,-151.0,0.00025618,2]
[420388539,1776069046404,-151.0,0.00025618,2]
[420388540,1776069046502,-151.0,0.00025619,2]
[420388542,1776069046601,-151.0,0.00025619,2]
[420388544,1776069046676,-151.0,0.00025619,2]
[420388546,1776069046713,-151.0,0.00025619,2]
[420388548,1776069046742,-151.0,0.00025619,2]
[420388549,1776069046773,-151.0,0.00025619,2]
[420388551,1776069046794,-151.0,0.00025619,2]
[420388554,1776069046811,-151.0,0.00025619,2]
[420388555,1776069046824,-151.0,0.00025619,2]
[420388557,1776069046844,-179.310417,0.00025619,2]
[420388559,1776069046861,-186.126984,0.00025619,2]
[420388561,1776069046871,-1117.6496182,0.00025622,2]
[420388574,1776069047002,-150.3266,0.000241,2]
[420388575,1776069047011,-251.39463374,0.00025622,2]
[420388577,1776069047028,-1319.11502296,0.00025622,2]
[420388579,1776069047038,-3056.1900896,0.00025622,2]
[420388581,1776069047047,-90635.4986547,0.00025622,2]
[420388583,1776069047057,-151.0,0.00025622,2]
[420388585,1776069047072,-151.0,0.00025622,2]
[420388587,1776069047082,-151.0,0.00025622,2]
[420388589,1776069047092,-16276.38038,0.00025622,2]
[420388591,1776069047109,-151.0,0.00025622,2]
[420388593,1776069047118,-151.0,0.00025622,2]
[420388595,1776069047131,-151.0,0.00025622,2]
[420388598,1776069047152,-151.0,0.00025622,2]
[420388599,1776069047162,-215.2990886,0.00025625,2]
[420388601,1776069047175,-151.0,0.00025631,7]
[420388604,1776069047201,-290.41304309,0.00025631,2]
[420388606,1776069047215,-151.0,0.00025632,7]
[420388608,1776069047252,-151.0,0.00025632,7]
[420388610,1776069047272,-194.37927344,0.00025633,2]
[420388612,1776069047301,-500.0,0.00025633,2]
[420388614,1776069047336,-500.0,0.00025634,2]
[420388615,1776069047355,-500.0,0.00025634,2]
[420388617,1776069047381,-500.0,0.00025634,2]
[420388619,1776069047399,-150.0,0.00025635,2]
[420388620,1776069047424,-200.0,0.00025635,2]
[420388621,1776069047442,-200.0,0.00025635,2]
[420388622,1776069047461,-250.0,0.00025644,6]
[420388623,1776069047475,-150.0,0.00025663,2]
[420388624,1776069047484,-363.0209909,0.00025673,2]
[420388625,1776069047501,-501.46717454,0.00025673,2]
[420388626,1776069047511,-205.45575229,0.00025673,2]
[420388627,1776069047523,-500.0,0.00025673,2]
[420388628,1776069047536,-500.0,0.00025673,2]
[420388629,1776069047547,-500.0,0.00025673,2]
[420388630,1776069047557,-500.0,0.00025673,2]
[420388631,1776069047567,-199.2263575,0.00025721,2]
[420388632,1776069047577,-151.0,0.00025732,7]
[420388633,1776069047590,-53595.52,0.00025735,2]
[420388634,1776069047598,-151.0,0.00025735,2]
[420388635,1776069047609,-151.0,0.00025735,2]
[420388636,1776069047618,-151.0,0.00025735,2]
[420388637,1776069047627,-151.0,0.00025735,2]
[420388638,1776069047636,-151.0,0.00025735,2]
[420388639,1776069047646,-151.0,0.00025735,2]
[420388640,1776069047655,-151.0,0.00025735,2]
[420388641,1776069047665,-151.0,0.00025737,7]
[420388642,1776069047675,-500.0,0.00025739,2]
[420388643,1776069047684,-623.31589767,0.00025739,2]
[420388644,1776069047693,-500.0,0.00025739,2]
[420388645,1776069047702,-500.0,0.00025739,2]
[420388646,1776069047712,-173.79812691,0.00025739,2]
[420388647,1776069047722,-352.24100255,0.00025739,2]
[420388648,1776069047731,-500.0,0.00025739,2]
[420388649,1776069047740,-150.0,0.00025739,2]
[420388650,1776069047750,-500.0,0.00025739,2]
[420388651,1776069047759,-171.64830742,0.00025739,2]
[420388652,1776069047768,-500.0,0.00025739,2]
[420388653,1776069047777,-500.0,0.00025739,2]
[420388654,1776069047786,-524.0,0.0002574,2]
[420388655,1776069047795,-501.36461497,0.00025773,2]
[420388656,1776069047804,-7753.80664271,0.00025786,2]
[420388657,1776069047813,-3080.0,0.000258,2]
[420388658,1776069047823,-2038.0,0.00025818,7]
[420388659,1776069047833,-282.63456616,0.00025825,2]
[420388660,1776069047842,-396.33,0.0002585,2]
[420388661,1776069047851,-165.553,0.0002587,5]
[420388662,1776069047860,-200.0,0.00025891,2]
[420388663,1776069047873,-599.0,0.00025922,10]
[420388664,1776069047882,-292.0,0.00025942,2]
[420388665,1776069047889,-151.0,0.00025975,7]
[420388666,1776069047897,-292.0,0.00025992,2]
[420388667,1776069047907,-307.0,0.00026,2]
[420388668,1776069047922,-313.0,0.00026,2]
[420388669,1776069047931,-168.0,0.00026008,2]
[420388670,1776069047941,-500.0,0.00026016,2]
[420388671,1776069047954,-500.0,0.00026016,2]
[420388672,1776069047968,-500.0,0.00026017,2]
[420388673,1776069047977,-500.0,0.00026017,2]
[420388674,1776069047991,-500.0,0.00026017,2]
[420388675,1776069048004,-500.0,0.00026017,2]
[420388676,1776069048016,-500.0,0.00026017,2]
[420388677,1776069048026,-187.78006525,0.00026025,2]
[420388678,1776069048043,-300.23240325,0.00026025,2]
[420388679,1776069048055,-813.5097,0.0002604,2]
[420388680,1776069048065,-3448.362,0.00026043,12]
[420388681,1776069048081,-154.922,0.00026043,12]
[420388682,1776069048095,-7753.80664271,0.0002605,2]
[420388683,1776069048106,-350.0,0.00026064,5]
[420388684,1776069048119,-1105.0,0.00026078,5]
[420388685,1776069048137,-254.29784,0.0002614,2]
[420388686,1776069048154,-254.29784,0.0002614,2]
[420388687,1776069048167,-254.29785,0.0002614,2]
[420388688,1776069048182,-487.0,0.0002614,2]
[420388689,1776069048201,-487.0,0.0002614,2]
[420388690,1776069048211,-801.84,0.0002614,2]
[420388691,1776069048244,-200.0,0.0002615,2]
[420388692,1776069048260,-168.0,0.00026156,2]
[420388693,1776069048297,-151.0,0.00026167,2]
[420388694,1776069048317,-151.0,0.00026167,2]
[420388695,1776069048351,-161.690184,0.00026167,2]
[420388696,1776069048370,-1120.0,0.00026204,5]
[420388697,1776069048403,-1000.0,0.00026221,2]
[420388698,1776069048426,-893.16461267,0.00026221,2]
[420388699,1776069048458,-1000.0,0.00026221,2]
[420388700,1776069048502,-982.96141404,0.00026221,2]
[420388701,1776069048526,-1000.0,0.00026229,2]
[420388702,1776069048557,-1000.0,0.00026229,2]
[420388703,1776069048567,-151.0,0.00026229,2]
[420388704,1776069048587,-150.0,0.0002623,2]
[420388705,1776069048606,-292.0,0.00026231,2]
[420388706,1776069048624,-200.0,0.00026238,2]
[420388707,1776069048641,-1000.0,0.00026266,2]
[420388708,1776069048651,-151.50404909,0.00026279,2]
[420388709,1776069048666,-1000.0,0.00026283,2]
[420388710,1776069048681,-1000.0,0.00026294,2]
[420388711,1776069048690,-189.95304308,0.00026295,2]
[420388712,1776069048702,-1000.0,0.00026295,2]
[420388713,1776069048713,-1000.0,0.00026298,2]
[420388714,1776069048730,-1075.0,0.000263,5]
[420388715,1776069048740,-158.0,0.000263,11]